bitfinex-derivatives/quotes_ETHF0:USTF0_20241013
["timestamp","ask_amount","ask_price","bid_price","bid_amount"]
[1728831417146,0.40864,2447.7,2447.5,3.2078]
[1728831417340,0.40864,2447.8,2447.5,3.2078]
[1728831417839,0.4224,2448.0,2447.5,3.2078]
[1728831418037,0.40863,2447.8,2447.5,3.2078]
[1728831418650,0.40864,2447.7,2447.5,3.2078]
[1728831418845,0.40864,2447.8,2447.5,3.2078]
[1728831419339,3.2924,2448.0,2447.5,3.2078]
[1728831419541,0.40864,2447.7,2447.5,3.2078]
[1728831420945,0.40861,2447.9,2447.5,3.2078]
[1728831421245,0.40866,2447.6,2447.5,3.2078]
[1728831421455,2.87,2447.8,2447.3,0.8055]
[1728831421747,0.40871,2447.3,2447.2,3.2078]
[1728831426949,1.83052,2447.7,2447.2,3.2078]
[1728831427144,0.40869,2447.5,2447.3,0.8078]
[1728831427348,0.40869,2447.5,2447.4,0.3977]
[1728831427555,1.44152,2447.7,2447.4,0.3977]
[1728831427556,0.4199,2447.7,2447.4,0.3977]
[1728831427858,0.79352,2447.9,2447.6,0.40866]
[1728831428355,0.79352,2447.9,2447.5,3.61647]
[1728831428853,0.3849,2447.9,2447.5,3.61647]
[1728831429045,0.79352,2447.9,2447.5,3.61647]
[1728831429449,0.40863,2447.8,2447.5,3.61647]
[1728831429855,0.3849,2447.9,2447.5,3.2078]
[1728831430058,0.40863,2447.8,2447.5,3.2078]
[1728831430549,2.87,2447.8,2447.3,3.2078]
[1728831430742,3.2601,2447.8,2447.1,0.82963]
[1728831430943,0.40868,2447.5,2447.1,0.82963]
[1728831431148,3.2601,2447.8,2447.1,0.82963]
[1728831431149,4.28169,2447.8,2447.2,0.40872]
[1728831431355,0.40868,2447.6,2447.2,0.40872]
[1728831431556,0.40868,2447.5,2447.2,0.40872]
[1728831431756,0.40868,2447.5,2447.3,3.2078]
[1728831432455,0.40869,2447.4,2447.3,3.2078]
[1728831433964,0.40869,2447.4,2447.0,3.2078]
[1728831433965,0.40874,2447.1,2447.0,3.2078]
[1728831435359,3.27874,2447.1,2447.0,3.2078]
[1728831436857,0.40874,2447.1,2447.0,3.2078]
[1728831438154,0.40878,2446.9,2446.8,33.68483]
[1728831439555,3.27878,2446.9,2446.8,33.68483]
[1728831441157,7.36598,2446.9,2446.8,33.68483]
[1728831443061,13.36598,2446.9,2446.8,33.68483]
[1728831444462,7.36598,2446.9,2446.8,33.68483]
[1728831444665,13.36598,2446.9,2446.8,27.77510007]
[1728831445964,13.36598,2446.9,2446.8,15.88984738]
[1728831446264,13.36598,2446.9,2446.8,12.28994297]
[1728831446265,13.57055584,2446.9,2446.8,12.28994297]
[1728831446457,15.6809699,2446.9,2446.8,11.18698297]
[1728831446668,11.6809699,2446.9,2446.8,9.97663297]
[1728831446966,16.60798,2446.9,2446.8,9.97663297]
[1728831447463,16.60898,2446.9,2446.8,9.97663297]
[1728831448166,17.13278776,2446.9,2446.8,9.97663297]
[1728831448762,17.33736866,2446.9,2446.8,9.97663297]
[1728831448958,17.33736866,2446.9,2446.8,2.15663297]
[1728831449172,17.33736613,2446.9,2446.8,0.88623297]
[1728831449561,17.13278776,2446.9,2446.8,0.88623297]
[1728831451873,10.60898,2446.9,2446.8,0.88623297]
[1728831452373,0.52433183,2447.2,2446.8,0.88623297]
[1728831452570,0.52433183,2447.2,2446.9,0.79497]
[1728831452866,0.52433183,2447.2,2447.1,0.40874]
[1728831453072,2.87,2447.5,2447.0,4.0864]
[1728831453260,2.87,2447.5,2447.1,0.40873]
[1728831453565,2.87,2447.5,2447.2,3.61651]
[1728831453958,2.87,2447.5,2447.2,3.2078]
[1728831454570,2.87,2447.5,2447.1,0.40874]
[1728831454768,2.87,2447.5,2446.9,4.3881]
[1728831455069,2.87,2447.5,2447.3,0.40871]
[1728831455370,1.57941745,2448.0,2447.4,0.3943]
[1728831455575,1.57941745,2448.2,2447.6,0.40866]
[1728831455761,2.87,2448.2,2447.9,0.4086]
[1728831456069,2.87,2448.4,2448.1,0.40858]
[1728831456271,4.85929,2448.7,2448.1,3.2078]
[1728831456272,4.78721745,2448.7,2448.1,3.2078]
[1728831456475,4.78721745,2448.7,2448.2,0.3933]
[1728831456476,2.87,2448.6,2448.2,0.3933]
[1728831456769,2.87,2448.6,2448.2,0.80186]
[1728831457276,2.87,2448.6,2448.2,0.80185]
[1728831457470,3.27847,2448.8,2448.3,4.49253]
[1728831457770,3.27847,2448.8,2448.4,0.40853]
[1728831457771,2.87,2448.8,2448.4,0.40853]
[1728831458168,2.87,2448.8,2448.3,0.40853]
[1728831458474,2.87,2449.0,2448.5,0.4085]
[1728831458774,2.87,2449.0,2448.7,0.40846]
[1728831458963,2.87,2449.0,2448.5,0.40851]
[1728831459277,2.87,2449.2,2448.7,0.40848]
[1728831459474,2.87,2449.2,2448.8,0.3958]
[1728831459771,3.2078,2449.4,2449.0,0.40841]
[1728831459772,6.0778,2449.4,2449.0,0.40841]
[1728831459965,1.98775745,2449.6,2449.0,3.2078]
[1728831459966,2.87,2449.6,2449.0,3.2078]
[1728831460370,3.2078,2449.7,2449.0,3.2078]
[1728831460371,3.27835,2449.5,2449.0,3.2078]
[1728831460876,2.87,2449.5,2449.0,3.2078]
[1728831461073,2.87,2449.5,2449.1,0.4084]
[1728831461274,3.61612,2449.7,2449.1,0.4084]
[1728831461275,6.48612,2449.7,2449.1,0.4084]
[1728831461778,0.40833,2449.6,2449.0,3.61621]
[1728831462268,2.87,2449.4,2449.0,3.61621]
[1728831462470,3.2078,2449.7,2449.0,3.2078]
[1728831462471,2.87,2449.3,2449.0,3.2078]
[1728831462869,0.40839,2449.2,2449.0,3.2078]
[1728831463178,2.87,2449.3,2449.0,3.2078]
[1728831463179,3.27839,2449.3,2449.0,3.2078]
[1728831463573,0.4084,2449.2,2449.0,3.2078]
[1728831464270,4.4498,2449.7,2449.0,3.2078]
[1728831464271,3.27841,2449.1,2449.0,3.2078]
[1728831464468,2.87,2449.1,2449.0,3.2078]
[1728831464876,3.27841,2449.1,2449.0,3.2078]
[1728831465173,3.27841,2449.1,2448.9,0.3846]
[1728831465378,2.87,2449.3,2448.9,0.3846]
[1728831465576,0.4084,2449.2,2448.9,0.3846]
[1728831466375,3.2078,2449.4,2448.9,0.3846]
[1728831466376,0.40843,2449.0,2448.9,0.3846]
[1728831466781,3.27843,2449.1,2448.9,0.3846]
[1728831467081,2.87,2449.3,2448.9,0.3846]
[1728831467673,0.40841,2449.1,2448.9,0.3846]
[1728831467876,0.4084,2449.2,2448.9,0.3846]
[1728831469684,3.27839,2449.3,2448.9,0.3846]
[1728831470180,0.4084,2449.2,2448.9,0.3846]
[1728831470383,3.27839,2449.3,2448.9,0.3846]
[1728831470577,3.2078,2449.4,2449.1,0.40841]
[1728831471881,3.2078,2449.4,2449.1,4.49161]
[1728831472685,3.2078,2449.4,2449.1,4.0832]
[1728831473185,0.40841,2449.1,2449.0,3.2078]
[1728831473482,3.69979,2449.3,2449.0,3.2078]
[1728831473682,0.82979,2449.3,2449.0,3.2078]
[1728831473888,0.82978,2449.3,2449.0,3.2078]
[1728831474079,3.2914,2449.3,2449.0,3.2078]
[1728831474273,0.40846,2448.9,2448.7,3.2078]
[1728831474779,0.40845,2448.9,2448.7,3.2078]
[1728831474982,0.82979,2449.3,2448.8,4.49245]
[1728831475182,0.82979,2449.3,2448.8,1.21275]
[1728831475680,0.4214,2449.3,2448.8,6.8821]
[1728831475880,0.4214,2449.3,2448.9,0.82244]
[1728831476089,0.4214,2449.3,2448.9,0.414]
[1728831476287,0.4214,2449.3,2449.0,0.40843]
[1728831476580,0.40833,2449.6,2449.1,0.4084]
[1728831476785,6.9138,2449.7,2448.9,0.414]
[1728831476979,0.40833,2449.6,2449.1,0.4084]
[1728831477683,7.32212,2449.7,2449.2,0.40839]
[1728831477983,0.40834,2449.6,2449.1,3.2078]
[1728831478281,3.6287,2449.7,2449.1,3.2078]
[1728831478282,0.40837,2449.4,2449.1,3.2078]
[1728831478481,2.87,2449.5,2449.1,3.2078]
[1728831478690,2.87,2449.5,2449.1,3.61621]
[1728831478880,3.27834,2449.5,2449.1,3.61621]
[1728831479079,3.27834,2449.5,2449.1,3.2078]
[1728831479281,3.27834,2449.5,2449.1,3.61621]
[1728831480281,2.87,2449.5,2449.1,3.61621]
[1728831480678,3.27835,2449.5,2449.1,3.6162]
[1728831481183,4.03701,2449.7,2449.3,0.40837]
[1728831481497,2.87,2449.4,2449.1,3.2078]
[1728831482491,0.40835,2449.5,2449.1,3.2078]
[1728831482686,3.6287,2449.7,2449.1,3.2078]
[1728831482895,4.03701,2449.7,2449.2,0.40838]
[1728831483088,4.03701,2449.7,2449.2,0.40839]
[1728831483590,3.6287,2449.7,2449.5,0.40834]
[1728831483792,3.6287,2449.7,2449.1,3.2078]
[1728831483793,3.6287,2449.7,2449.2,0.4162]
[1728831484088,4.03702,2449.7,2449.3,0.40838]
[1728831484286,3.6287,2449.7,2449.3,0.40838]
[1728831484487,3.6287,2449.7,2449.4,0.40836]
[1728831484687,3.6287,2449.7,2449.2,0.4162]
[1728831484884,0.4209,2449.7,2449.6,0.40833]
[1728831485087,0.4209,2449.7,2449.6,4.0824]
[1728831485281,0.4209,2449.7,2449.5,0.40834]
[1728831485988,0.4209,2449.7,2449.4,3.61615]
[1728831486286,0.4209,2449.7,2449.5,0.40834]
[1728831487194,0.4209,2449.7,2449.4,3.2078]
[1728831487497,0.4083,2449.8,2449.5,4.49073]
[1728831487690,0.40828,2449.9,2449.6,0.40831]
[1728831487897,3.2737,2450.0,2449.4,3.2078]
[1728831488101,0.40828,2449.9,2449.6,0.40832]
[1728831488394,0.4037,2450.0,2449.6,0.40832]
[1728831488691,0.4083,2449.8,2449.5,0.40834]
[1728831489008,3.2737,2450.0,2449.4,3.2078]
[1728831489193,0.40834,2449.6,2449.4,3.2078]
[1728831489388,0.79484,2449.5,2449.4,3.2078]
[1728831489590,1.21024,2449.5,2449.4,3.2078]
[1728831490094,5.29264,2449.5,2449.4,3.2078]
[1728831490292,5.2857,2449.5,2448.9,3.6049]
[1728831490490,1.2033,2449.5,2448.9,3.6049]
[1728831490792,1.2033,2449.5,2449.2,0.40839]
[1728831490793,0.79485,2449.5,2449.2,0.40839]
[1728831490996,0.79485,2449.5,2449.2,3.61619]
[1728831491196,0.40837,2449.4,2449.2,3.2078]
[1728831491392,0.40838,2449.3,2449.0,0.40842]
[1728831491692,0.4084,2449.2,2448.9,4.01334]
[1728831492090,0.40842,2449.1,2448.9,3.2078]
[1728831492290,0.4163,2449.0,2448.9,3.2078]
[1728831492595,0.82473,2449.0,2448.9,3.2078]
[1728831492795,0.4163,2449.0,2448.9,3.2078]
[1728831493001,0.82473,2449.0,2448.9,3.2078]
[1728831493493,0.82473,2449.0,2448.6,3.6946]
[1728831493494,0.4163,2449.0,2448.6,3.6214]
[1728831493696,0.40848,2448.7,2448.6,3.2078]
[1728831494301,0.80088,2448.7,2448.6,3.2078]
[1728831495796,0.4217,2448.8,2448.6,3.2078]
[1728831496104,0.83017,2448.8,2448.6,3.2078]
[1728831496800,3.2863,2449.0,2448.6,3.2078]
[1728831496801,0.40845,2448.9,2448.6,3.2078]
[1728831497095,3.2863,2449.0,2448.6,3.2078]
[1728831497096,0.4163,2449.0,2448.6,3.2078]
[1728831497790,0.40848,2448.7,2448.6,3.2078]
[1728831498404,0.4163,2449.0,2448.6,3.2078]
[1728831498700,0.40845,2448.9,2448.6,3.2078]
[1728831499296,0.82473,2449.0,2448.6,3.61629]
[1728831499596,0.82474,2449.0,2448.6,3.61629]
[1728831499892,3.2078,2449.2,2448.6,3.2078]
[1728831500195,0.40839,2449.2,2448.9,3.2078]
[1728831501394,1.98779745,2449.3,2448.9,3.61624]
[1728831501593,0.40838,2449.3,2448.9,3.2078]
[1728831501899,0.40838,2449.3,2448.9,3.61624]
[1728831502597,1.57941745,2449.4,2448.9,3.2078]
[1728831502798,0.40839,2449.3,2448.9,3.61624]
[1728831503096,3.89097,2449.3,2448.9,3.2078]
[1728831503301,0.4036,2449.2,2448.9,3.2078]
[1728831503602,0.812,2449.2,2448.9,3.61624]
[1728831504014,0.40842,2449.1,2448.9,3.2078]
[1728831504201,0.4036,2449.2,2448.9,3.2078]
[1728831504493,0.40841,2449.1,2448.9,3.2078]
[1728831505095,0.40843,2449.0,2448.9,3.2078]
[1728831505305,0.4036,2449.2,2448.9,3.2078]
[1728831505496,0.40843,2449.0,2448.9,3.2078]
[1728831506699,1.98784745,2449.0,2448.9,3.2078]
[1728831507099,2.19219433,2449.0,2448.9,3.2078]
[1728831508299,2.19219433,2449.0,2448.5,3.2078]
[1728831508300,0.40848,2448.7,2448.5,3.2078]
[1728831508898,0.80188,2448.7,2448.5,3.2078]
[1728831509399,0.80188,2448.7,2448.3,0.4167]
[1728831509400,2.87,2448.6,2448.3,0.4167]
[1728831509601,0.40854,2448.3,2448.2,3.2078]
[1728831511201,1.58682776,2448.5,2448.2,3.2078]
[1728831511397,0.40854,2448.4,2448.2,3.2078]
[1728831512199,2.87,2448.6,2448.2,3.2078]
[1728831512200,0.40854,2448.3,2448.2,3.2078]
[1728831513206,4.45682776,2448.6,2448.2,3.2078]
[1728831513207,0.40854,2448.4,2448.2,3.61636]
[1728831513510,0.40854,2448.4,2448.2,3.2078]
[1728831513709,1.05665672,2448.5,2448.2,3.2078]
[1728831514013,0.40854,2448.3,2448.2,3.2078]
[1728831516706,2.07795672,2448.5,2447.9,0.7831]
[1728831516905,0.40857,2448.2,2448.0,0.40859]
[1728831517110,0.40859,2448.0,2447.9,0.7831]
[1728831517319,0.40859,2448.0,2447.9,0.3884]
[1728831518405,0.80189,2448.1,2447.9,0.3884]
[1728831518715,0.40859,2448.0,2447.9,0.3884]
[1728831518911,0.80189,2448.1,2447.9,0.3884]
[1728831519612,0.40856,2448.2,2447.9,0.797]
[1728831519809,0.40856,2448.2,2447.9,1.2104]
[1728831520609,3.27855,2448.3,2447.9,1.2242]
[1728831520815,3.27855,2448.3,2447.9,1.6328]
[1728831521310,2.87,2448.3,2448.0,0.40858]
[1728831521615,3.27855,2448.3,2447.9,1.6328]
[1728831522208,0.40857,2448.2,2447.9,1.6328]
[1728831523115,0.40857,2448.2,2447.9,0.3884]
[1728831523116,0.40859,2448.0,2447.9,0.3884]
[1728831523618,0.79789,2448.0,2447.9,0.3884]
[1728831524112,0.40861,2447.9,2447.8,3.2078]
[1728831524712,2.87,2447.9,2447.6,3.2078]
[1728831524912,0.40866,2447.7,2447.6,3.2078]
[1728831526406,3.27866,2447.7,2447.4,0.418]
[1728831526612,0.40868,2447.5,2447.4,0.418]
[1728831526827,2.87,2447.5,2447.3,3.2078]
[1728831527119,0.81749,2447.4,2447.3,3.2078]
[1728831527617,4.90309,2447.4,2447.3,3.2078]
[1728831529612,0.81749,2447.4,2447.3,3.2078]
[1728831530421,0.81749,2447.4,2447.0,0.418]
[1728831530422,0.40874,2447.1,2447.0,0.418]
[1728831530715,0.4088,2447.4,2447.0,0.418]
[1728831530716,0.40873,2447.2,2447.0,0.418]
[1728831531620,0.40878,2447.0,2446.8,3.2078]
[1728831531822,0.40878,2446.9,2446.8,3.2078]
[1728831532021,0.79708,2446.9,2446.8,3.2078]
[1728831533518,3.2583,2446.9,2446.5,3.6101]
[1728831533717,0.40883,2446.6,2446.5,3.6101]
[1728831534216,0.40884,2446.5,2446.4,0.4064]
[1728831534619,3.89206,2446.7,2446.2,0.412]
[1728831534827,0.40886,2446.5,2446.2,0.412]
[1728831535418,0.40887,2446.4,2446.2,0.412]
[1728831535818,2.87,2446.7,2446.2,0.412]
[1728831536018,0.40888,2446.3,2446.2,0.412]
[1728831536214,0.40888,2446.3,2446.1,3.5912]
[1728831536215,0.40889,2446.2,2446.1,3.5912]
[1728831536418,0.40889,2446.2,2446.1,0.3834]
[1728831537623,0.40894,2445.9,2445.8,4.0383]
[1728831537820,0.40894,2445.9,2445.8,3.2078]
[1728831538922,0.8005,2446.3,2445.8,7.70556]
[1728831538923,3.2618,2446.3,2445.8,7.70556]
[1728831539115,0.4089,2446.2,2446.0,0.40892]
[1728831539320,0.80069,2446.3,2446.0,0.40892]
[1728831539827,0.80069,2446.3,2446.1,0.40891]
[1728831540029,0.40889,2446.3,2446.1,3.61671]
[1728831540227,2.87,2446.5,2446.2,0.4144]
[1728831540423,0.40884,2446.6,2446.3,0.40887]
[1728831540623,0.40884,2446.6,2446.2,0.4144]
[1728831540624,0.40882,2446.7,2446.4,0.4125]
[1728831540819,0.4088,2446.8,2446.5,0.40884]
[1728831541028,0.4004,2446.9,2446.4,3.6203]
[1728831541220,0.40878,2446.9,2446.4,3.6203]
[1728831541537,7.3868,2447.0,2446.6,0.40883]
[1728831541729,0.40878,2446.9,2446.6,0.40883]
[1728831541926,3.2078,2447.0,2446.7,0.8232]
[1728831542227,3.61657,2447.0,2446.7,0.82321]
[1728831542622,3.2078,2447.0,2446.7,0.82321]
[1728831543830,0.4004,2447.2,2446.9,0.40877]
[1728831544124,3.2704,2447.2,2446.7,3.6222]
[1728831544331,3.2704,2447.2,2446.8,0.40878]
[1728831544630,3.67913,2447.2,2446.8,0.40878]
[1728831544926,2.87,2447.0,2446.8,0.40878]
[1728831546730,2.87,2447.0,2446.7,4.031]
[1728831547425,3.27877,2447.0,2446.7,3.6222]
[1728831548629,2.87,2446.8,2446.7,3.6222]
[1728831548835,2.87,2446.8,2446.7,3.2078]
[1728831548836,3.27879,2446.8,2446.7,3.2078]
[1728831551436,2.87,2446.8,2446.7,3.2078]
[1728831551731,3.27879,2446.8,2446.7,3.2078]
[1728831552829,7.36599,2446.8,2446.7,3.2078]
[1728831556133,3.27879,2446.8,2446.7,3.2078]
[1728831556328,4.001,2447.1,2446.3,3.2078]
[1728831556548,2.87,2446.9,2446.8,0.40879]
[1728831556730,2.87,2446.9,2446.5,0.42]
[1728831556731,3.2704,2447.2,2446.9,0.79536]
[1728831556934,3.2704,2447.2,2446.9,3.5944]
[1728831557128,3.67913,2447.2,2446.9,3.5944]
[1728831557436,3.2704,2447.2,2446.9,4.00316]
[1728831557733,2.87,2447.0,2446.9,3.5944]
[1728831559629,2.87,2447.0,2446.9,0.3866]
[1728831560533,0.80914,2447.2,2446.9,0.3866]
[1728831560729,2.87,2447.0,2446.9,0.3866]
[1728831561130,0.80914,2447.2,2446.9,0.3866]
[1728831561336,2.87,2447.0,2446.9,0.3866]
[1728831563040,3.27876,2447.0,2446.6,3.61662]
[1728831563342,2.87,2446.8,2446.6,4.00862]
[1728831564048,0.40878,2446.9,2446.6,4.00862]
[1728831564437,3.27877,2447.0,2446.7,0.40881]
[1728831564640,2.87,2447.0,2446.8,0.40878]
[1728831564942,3.27877,2447.0,2446.8,0.40878]
[1728831565239,3.27877,2447.0,2446.7,0.4088]
[1728831565644,2.87,2447.0,2446.7,0.4088]
[1728831565855,0.40878,2446.9,2446.7,0.4088]
[1728831566035,0.4088,2446.8,2446.6,3.5998]
[1728831566442,0.4088,2446.8,2446.6,7.687]
[1728831566639,0.40879,2446.9,2446.6,8.09582]
[1728831566933,0.4088,2446.8,2446.6,4.00862]
[1728831567735,0.40878,2446.9,2446.7,4.496]
[1728831567934,0.40878,2446.9,2446.7,0.4088]
[1728831569046,3.27876,2447.0,2446.8,0.40879]
[1728831569343,3.92665672,2447.0,2446.9,0.40878]
[1728831569636,4.33542672,2447.0,2446.6,3.5998]
[1728831569939,4.33542672,2447.0,2446.8,0.40879]
[1728831570540,3.92665672,2447.0,2446.7,0.4088]
[1728831570845,1.46543672,2446.9,2446.7,0.40881]
[1728831571041,1.46543672,2446.9,2446.6,4.00862]
[1728831571240,1.46545672,2446.8,2446.6,4.00862]
[1728831571844,1.46545672,2446.8,2446.6,8.09582]
[1728831572938,1.46545672,2446.8,2446.7,4.49601]
[1728831573132,1.05665672,2446.8,2446.7,4.49601]
[1728831574348,1.05665672,2446.9,2446.8,0.40879]
[1728831574543,1.05665672,2446.9,2446.8,0.82959]
[1728831574736,1.05665672,2447.0,2446.9,0.40878]
[1728831574953,2.51081406,2447.2,2446.9,10.165]
[1728831574954,1.05665672,2447.2,2446.9,10.165]
[1728831575242,1.58682776,2447.6,2447.0,4.4798]
[1728831575447,1.58682776,2447.6,2447.5,3.2078]
[1728831575448,0.40867,2447.6,2447.5,3.2078]
[1728831575844,0.40867,2447.6,2447.5,4.022]
[1728831576050,1.58682776,2447.7,2447.5,8.1076]
[1728831576242,1.99545776,2447.8,2447.6,0.40866]
[1728831576442,1.98672776,2447.9,2447.5,4.022]
[1728831576649,1.98672776,2447.9,2447.5,4.43067]
[1728831576650,0.40865,2447.7,2447.5,4.43067]
[1728831577045,0.40865,2447.7,2447.5,4.022]
[1728831577246,0.40866,2447.6,2447.5,3.2078]
[1728831577448,2.60840776,2447.8,2447.3,1.1943]
[1728831577655,0.40869,2447.4,2447.3,0.7856]
[1728831577846,0.40869,2447.4,2447.3,1.19431]
[1728831578046,0.40869,2447.4,2447.3,5.28071]
[1728831578554,0.40867,2447.6,2447.4,0.40868]
[1728831578854,0.40867,2447.6,2447.5,3.2078]
[1728831579255,0.40867,2447.6,2447.5,7.2934]
[1728831579847,0.40863,2447.8,2447.6,0.40865]
[1728831580050,0.40863,2447.8,2447.7,0.40864]
[1728831580358,1.02149,2448.0,2447.6,0.40865]
[1728831580545,0.40864,2447.8,2447.6,0.40865]
[1728831580850,0.40864,2447.8,2447.5,3.2078]
[1728831580851,1.02149,2448.0,2447.5,3.2078]
[1728831581155,0.40866,2447.6,2447.5,3.2078]
[1728831585449,0.40866,2447.6,2447.5,3.61648]
[1728831586455,0.40866,2447.6,2447.5,7.70208]
[1728831587754,0.4828,2447.7,2447.6,0.40866]
[1728831587755,0.89145,2447.7,2447.6,0.40866]
[1728831588451,0.40865,2447.7,2447.6,4.49426]
[1728831588654,1.58682776,2448.1,2447.6,4.0856]
[1728831588964,4.64663,2448.2,2447.8,3.61641]
[1728831588965,0.40862,2447.9,2447.8,3.61641]
[1728831589262,0.40861,2448.0,2447.9,0.40861]
[1728831589456,4.1211,2448.2,2448.1,0.40858]
[1728831589661,0.4959,2448.2,2448.1,3.2078]
[1728831589963,0.4959,2448.2,2448.1,0.40858]
[1728831589964,0.90446,2448.2,2448.1,0.40858]
[1728831590161,0.4959,2448.2,2448.1,0.40858]
[1728831590457,0.4959,2448.2,2448.1,3.61638]
[1728831591569,0.4959,2448.2,2448.1,3.2078]
[1728831591858,0.90446,2448.2,2448.1,3.2078]
[1728831595363,0.40859,2448.1,2447.9,0.90361]
[1728831595758,0.40858,2448.1,2447.9,4.5798]
[1728831595965,0.40859,2448.0,2447.9,0.495]
[1728831596157,0.9712,2448.2,2447.7,3.2078]
[1728831596361,0.40863,2447.8,2447.7,3.2078]
[1728831596762,0.40863,2447.8,2447.7,13.2934]
[1728831597065,0.40863,2447.8,2447.7,7.2934]
[1728831597266,0.40863,2447.8,2447.7,13.2934]
[1728831597459,0.40863,2447.8,2447.7,7.70204]
[1728831600157,1.02151,2448.0,2447.7,7.2934]
[1728831600372,0.40863,2447.9,2447.8,4.0856]
[1728831600760,0.40863,2447.8,2447.7,3.2078]
[1728831601764,3.27863,2447.8,2447.7,3.2078]
[1728831603063,3.27863,2447.8,2447.3,0.8978]
[1728831603064,0.40869,2447.4,2447.3,0.4891]
[1728831603372,0.4087,2447.4,2447.2,3.2078]
[1728831603568,1.02168,2447.6,2447.2,3.2078]
[1728831603767,0.40871,2447.4,2447.2,3.2078]
[1728831603969,0.40871,2447.3,2447.2,3.2078]
[1728831604571,0.4087,2447.4,2447.2,3.61653]
[1728831605468,1.02168,2447.6,2447.2,3.2078]
[1728831605673,0.40871,2447.3,2447.2,3.2078]
[1728831606764,3.27871,2447.3,2447.2,3.2078]
[1728831606980,0.40876,2447.0,2446.9,3.2078]
[1728831609374,0.88674,2447.2,2447.0,0.40876]
[1728831609972,0.40875,2447.1,2446.9,3.61657]
[1728831610474,0.40875,2447.1,2447.0,0.40876]
[1728831610675,0.40875,2447.1,2446.9,3.61657]
[1728831610974,0.478,2447.2,2446.9,3.61658]
[1728831610975,0.40876,2447.0,2446.9,3.61658]
[1728831611177,0.40875,2447.1,2446.9,3.61658]
[1728831612378,0.478,2447.2,2446.9,3.2078]
[1728831612685,0.478,2447.2,2446.9,3.61657]
[1728831613171,0.40876,2447.0,2446.9,3.2078]
[1728831615683,0.88846,2447.0,2446.9,3.2078]
[1728831617178,0.478,2447.2,2446.9,3.2078]
[1728831617386,0.88673,2447.2,2447.0,0.40875]
[1728831617574,0.40875,2447.1,2446.9,3.2078]
[1728831617773,0.40875,2447.1,2446.9,3.61658]
[1728831618174,0.478,2447.2,2447.0,0.40876]
[1728831618372,1.58682776,2447.5,2447.4,0.40869]
[1728831618579,4.179,2447.6,2447.3,3.6165]
[1728831618580,4.58766,2447.6,2447.3,3.6165]
[1728831618774,4.58766,2447.6,2447.3,3.2078]
[1728831618775,4.179,2447.6,2447.3,3.2078]
[1728831618981,0.40869,2447.4,2447.1,0.9693]
[1728831619186,0.40869,2447.4,2447.1,1.37804]
[1728831619686,0.40871,2447.3,2447.1,0.4914]
[1728831619883,6.78748776,2447.6,2447.1,0.4914]
[1728831620081,0.40871,2447.4,2447.1,0.90014]
[1728831620273,6.78748776,2447.6,2447.1,0.90014]
[1728831620479,0.40871,2447.3,2447.1,0.90014]
[1728831621684,0.40873,2447.2,2447.1,0.90014]
[1728831621881,0.40873,2447.2,2447.1,0.4914]
[1728831622781,0.88002,2447.3,2447.1,0.90014]
[1728831622979,0.4713,2447.3,2447.1,0.90014]
[1728831623185,0.40873,2447.2,2447.1,0.4914]
[1728831623383,0.40873,2447.2,2446.9,3.2078]
[1728831623384,0.4713,2447.3,2446.9,3.61657]
[1728831623778,0.40876,2447.0,2446.9,3.2078]
[1728831629790,1.37826,2447.0,2446.9,3.2078]
[1728831630885,0.89796,2447.0,2446.9,3.2078]
[1728831631293,0.40876,2447.0,2446.9,3.2078]
[1728831632290,4.49516,2447.0,2446.9,3.2078]
[1728831633189,7.36516,2447.0,2446.9,3.2078]
[1728831633379,7.36516,2447.0,2446.4,0.5184]
[1728831633380,10.1642,2447.0,2446.4,0.5184]
[1728831633582,0.40886,2446.4,2446.3,3.2078]
[1728831634485,1.44556,2446.5,2446.3,3.61668]
[1728831634689,3.09813776,2446.8,2446.3,3.2078]
[1728831634690,2.07612776,2446.8,2446.3,3.2078]
[1728831634893,0.40881,2446.8,2446.6,3.2078]
[1728831635689,0.40881,2446.7,2446.6,3.2078]
[1728831635891,1.0367,2446.9,2446.4,0.4755]
[1728831636087,0.40883,2446.6,2446.4,0.4755]
[1728831636287,0.40884,2446.5,2446.4,0.4755]
[1728831637290,0.40886,2446.4,2446.3,3.2078]
[1728831637493,0.89876,2446.4,2446.3,3.2078]
[1728831638985,7.85676,2446.4,2446.3,3.2078]
[1728831642791,3.76876,2446.4,2446.3,3.2078]
[1728831644593,0.40888,2446.3,2446.1,3.61671]
[1728831644785,3.76877,2446.4,2446.1,3.2078]
[1728831644980,3.76877,2446.4,2446.2,0.88939]
[1728831645186,3.3599,2446.4,2446.2,0.4805]
[1728831645490,0.40888,2446.3,2446.2,0.4805]
[1728831646699,3.3599,2446.4,2446.1,3.2078]
[1728831647000,3.27889,2446.2,2446.1,3.2078]
[1728831647389,7.36689,2446.2,2446.1,3.2078]
[1728831650002,2.87,2446.2,2446.1,3.2078]
[1728831650501,2.87,2446.2,2446.1,3.61671]
[1728831651394,0.4899,2446.4,2446.3,0.40888]
[1728831651596,0.4899,2446.4,2446.2,1.5074]
[1728831651805,0.4899,2446.4,2446.3,0.40888]
[1728831652001,0.89877,2446.4,2446.2,1.5074]
[1728831652398,0.4899,2446.4,2446.2,1.91628]
[1728831653001,0.89876,2446.4,2446.2,1.5074]